[Event "5e festival international d'échecs d'A"]
[Site "Allauch, France"]
[Date "2023.09.02"]
[Round "9.1"]
[White "Figier, Anthony"]
[Black "Petrosyan, Armen"]
[Result "1-0"]
[WhiteElo "1991"]
[BlackElo "2360"]
[PlyCount "153"]
[EventDate "2023.??.??"]
[TimeControl "1"]

1. d4 {[%emt 0:00:00]} d5 {[%emt 0:00:00]} 2. c4 {[%emt 0:00:00]} e6 {[%emt 0:
00:00]} 3. Nf3 {[%emt 0:00:00]} Nf6 {[%emt 0:00:00]} 4. g3 {[%emt 0:00:00]}
Bb4+ {[%emt 0:00:00]} 5. Bd2 {[%emt 0:00:00]} Be7 {[%emt 0:00:00]} 6. Bg2 {
[%emt 0:00:00]} O-O {[%emt 0:00:00]} 7. O-O {[%emt 0:00:00]} c6 {[%emt 0:00:00]
} 8. Bf4 {[%emt 0:00:00]} dxc4 {[%emt 0:00:00]} 9. Ne5 {[%emt 0:00:00]} Nd5 {
[%emt 0:00:00]} 10. Nxc4 {[%emt 0:00:00]} Nxf4 {[%emt 0:00:00]} 11. gxf4 {
[%emt 0:00:00]} Nd7 {[%emt 0:00:00]} 12. Nc3 {[%emt 0:00:00]} Nb6 {[%emt 0:00:
00]} 13. Ne5 {[%emt 0:00:00]} f6 {[%emt 0:00:00]} 14. Nf3 {[%emt 0:00:00]} Nd5
{[%emt 0:00:00]} 15. e3 {[%emt 0:00:00]} Bd7 {[%emt 0:00:00]} 16. Qb3 {[%emt 0:
00:00]} Qb6 {[%emt 0:00:00]} 17. Qc2 {[%emt 0:00:00]} Be8 {[%emt 0:00:00]} 18.
f5 {[%emt 0:00:00]} Nxc3 {[%emt 0:00:00]} 19. bxc3 {[%emt 0:00:00]} exf5 {
[%emt 0:00:00]} 20. Qxf5 {[%emt 0:00:00]} Qc7 {[%emt 0:00:00]} 21. Qc2 {
[%emt 0:00:00]} Bg6 {[%emt 0:00:00]} 22. Qb3+ {[%emt 0:00:00]} Bf7 {[%emt 0:00:
00]} 23. Qc2 {[%emt 0:00:00]} Bd6 {[%emt 0:00:00]} 24. h3 {[%emt 0:00:00]} Rfe8
{[%emt 0:00:00]} 25. Rfe1 {[%emt 0:00:00]} Rad8 {[%emt 0:00:00]} 26. Nd2 {
[%emt 0:00:00]} b6 {[%emt 0:00:00]} 27. Ne4 {[%emt 0:00:00]} Be7 {[%emt 0:00:
00]} 28. Ng3 {[%emt 0:00:00]} g6 {[%emt 0:00:00]} 29. a4 {[%emt 0:00:00]} c5 {
[%emt 0:00:00]} 30. Qb2 {[%emt 0:00:00]} f5 {[%emt 0:00:00]} 31. Nf1 {[%emt 0:
00:00]} Bf6 {[%emt 0:00:00]} 32. a5 {[%emt 0:00:00]} f4 {[%emt 0:00:00]} 33.
axb6 {[%emt 0:00:00]} axb6 {[%emt 0:00:00]} 34. Reb1 {[%emt 0:00:00]} cxd4 {
[%emt 0:00:00]} 35. exd4 {[%emt 0:00:00]} Kg7 {[%emt 0:00:00]} 36. Nh2 {
[%emt 0:00:00]} h5 {[%emt 0:00:00]} 37. Nf3 {[%emt 0:00:00]} Bd5 {[%emt 0:00:
00]} 38. Qxb6 {[%emt 0:00:00]} Qxb6 {[%emt 0:00:00]} 39. Rxb6 {[%emt 0:00:00]}
Rc8 {[%emt 0:00:00]} 40. Ra7+ {[%emt 0:00:00]} Re7 {[%emt 0:00:00]} 41. Rxe7+ {
[%emt 0:00:00]} Bxe7 {[%emt 0:00:00]} 42. Ne5 {[%emt 0:00:00]} Bxg2 {[%emt 0:
00:00]} 43. Rxg6+ {[%emt 0:00:00]} Kh7 {[%emt 0:00:00]} 44. Kxg2 {[%emt 0:00:
00]} Rxc3 {[%emt 0:00:00]} 45. Re6 {[%emt 0:00:00]} Bf8 {[%emt 0:00:00]} 46.
Rf6 {[%emt 0:00:00]} Bh6 {[%emt 0:00:00]} 47. Rf5 {[%emt 0:00:00]} Kg8 {
[%emt 0:00:00]} 48. Rxh5 {[%emt 0:00:00]} Bg7 {[%emt 0:00:00]} 49. Rf5 {
[%emt 0:00:00]} Bh6 {[%emt 0:00:00]} 50. Ng4 {[%emt 0:00:00]} Bg7 {[%emt 0:00:
00]} 51. Rxf4 {[%emt 0:00:00]} Rc4 {[%emt 0:00:00]} 52. Ne3 {[%emt 0:00:00]}
Rxd4 {[%emt 0:00:00]} 53. Rg4 {[%emt 0:00:00]} Rxg4+ {[%emt 0:00:00]} 54. hxg4
{[%emt 0:00:00]} Be5 {[%emt 0:00:00]} 55. Kf3 {[%emt 0:00:00]} Kf7 {[%emt 0:00:
00]} 56. Ke4 {[%emt 0:00:00]} Bh2 {[%emt 0:00:00]} 57. Kf5 {[%emt 0:00:00]} Bg1
{[%emt 0:00:00]} 58. Nd1 {[%emt 0:00:00]} Kg7 {[%emt 0:00:00]} 59. f4 {[%emt 0:
00:00]} Bd4 {[%emt 0:00:00]} 60. Ke4 {[%emt 0:00:00]} Ba1 {[%emt 0:00:00]} 61.
Nf2 {[%emt 0:00:00]} Kg6 {[%emt 0:00:00]} 62. Nh3 {[%emt 0:00:00]} Bf6 {
[%emt 0:00:00]} 63. f5+ {[%emt 0:00:00]} Kf7 {[%emt 0:00:00]} 64. g5 {[%emt 0:
00:00]} Bc3 {[%emt 0:00:00]} 65. Nf4 {[%emt 0:00:00]} Bb2 {[%emt 0:00:00]} 66.
Nh5 {[%emt 0:00:00]} Bc3 {[%emt 0:00:00]} 67. Kf3 {[%emt 0:00:00]} Bb2 {
[%emt 0:00:00]} 68. Kg4 {[%emt 0:00:00]} Bc3 {[%emt 0:00:00]} 69. g6+ {[%emt 0:
00:00]} Ke7 {[%emt 0:00:00]} 70. Kg5 {[%emt 0:00:00]} Bd2+ {[%emt 0:00:00]} 71.
Nf4 {[%emt 0:00:00]} Kf8 {[%emt 0:00:00]} 72. f6 {[%emt 0:00:00]} Bc1 {[%emt 0:
00:00]} 73. Kf5 {[%emt 0:00:00]} Ba3 {[%emt 0:00:00]} 74. g7+ {[%emt 0:00:00]}
Kf7 {[%emt 0:00:00]} 75. Ne6 {[%emt 0:00:00]} Bb2 {[%emt 0:00:00]} 76. Nd8+ {
[%emt 0:00:00]} Kg8 {[%emt 0:00:00]} 77. Kg6 {[%emt 0:00:00]} 1-0

[Event "5e festival international d'échecs d'A"]
[Site "Allauch, France"]
[Date "2023.09.02"]
[Round "9.2"]
[White "Derige Kane, Yan"]
[Black "Charvein, Gabriel"]
[Result "1-0"]
[WhiteElo "2162"]
[BlackElo "1993"]
[PlyCount "79"]
[EventDate "2023.??.??"]
[TimeControl "1"]

1. d4 {[%emt 0:00:00]} Nf6 {[%emt 0:00:00]} 2. Bg5 {[%emt 0:00:00]} Ne4 {
[%emt 0:00:00]} 3. Bf4 {[%emt 0:00:00]} e5 {[%emt 0:00:00]} 4. Bxe5 {[%emt 0:
00:00]} d6 {[%emt 0:00:00]} 5. Bg3 {[%emt 0:00:00]} h5 {[%emt 0:00:00]} 6. Nd2
{[%emt 0:00:00]} Nxg3 {[%emt 0:00:00]} 7. hxg3 {[%emt 0:00:00]} g6 {[%emt 0:00:
00]} 8. e3 {[%emt 0:00:00]} Bg7 {[%emt 0:00:00]} 9. Bd3 {[%emt 0:00:00]} c5 {
[%emt 0:00:00]} 10. c3 {[%emt 0:00:00]} Nc6 {[%emt 0:00:00]} 11. Ne2 {[%emt 0:
00:00]} Bg4 {[%emt 0:00:00]} 12. Qc2 {[%emt 0:00:00]} Rb8 {[%emt 0:00:00]} 13.
f3 {[%emt 0:00:00]} Bd7 {[%emt 0:00:00]} 14. O-O-O {[%emt 0:00:00]} O-O {
[%emt 0:00:00]} 15. Nf4 {[%emt 0:00:00]} cxd4 {[%emt 0:00:00]} 16. exd4 {
[%emt 0:00:00]} Nxd4 {[%emt 0:00:00]} 17. cxd4 {[%emt 0:00:00]} Rc8 {[%emt 0:
00:00]} 18. Bc4 {[%emt 0:00:00]} d5 {[%emt 0:00:00]} 19. Nxd5 {[%emt 0:00:00]}
b5 {[%emt 0:00:00]} 20. Nc3 {[%emt 0:00:00]} Bf5 {[%emt 0:00:00]} 21. Bd3 {
[%emt 0:00:00]} Bxd3 {[%emt 0:00:00]} 22. Qxd3 {[%emt 0:00:00]} b4 {[%emt 0:00:
00]} 23. Nb3 {[%emt 0:00:00]} bxc3 {[%emt 0:00:00]} 24. bxc3 {[%emt 0:00:00]}
Qd5 {[%emt 0:00:00]} 25. Kb2 {[%emt 0:04:14]} Rc4 {[%emt 0:00:00]} 26. Rc1 {
[%emt 0:00:00]} a5 {[%emt 0:00:00]} 27. Rhd1 {[%emt 0:00:00]} Rb8 {[%emt 0:00:
00]} 28. Ka1 {[%emt 0:00:00]} Ra4 {[%emt 0:00:00]} 29. c4 {[%emt 0:00:00]} Qb7
{[%emt 0:00:00]} 30. Rb1 {[%emt 0:00:00]} Ra3 {[%emt 0:00:00]} 31. Qc2 {
[%emt 0:00:00]} Qc6 {[%emt 0:00:00]} 32. Rd3 {[%emt 0:00:00]} Rb4 {[%emt 0:00:
00]} 33. Nd2 {[%emt 0:00:00]} Qd6 {[%emt 0:00:00]} 34. Rxb4 {[%emt 0:00:00]}
Qxb4 {[%emt 0:00:00]} 35. Ne4 {[%emt 0:00:00]} f5 {[%emt 0:00:00]} 36. Nd2 {
[%emt 0:00:00]} Rc3 {[%emt 0:00:00]} 37. Rxc3 {[%emt 0:00:00]} Bxd4 {[%emt 0:
00:00]} 38. Nb1 {[%emt 0:00:00]} a4 {[%emt 0:00:00]} 39. a3 {[%emt 0:00:54]}
Qxc4 {[%emt 0:00:00]} 40. Qa2 {[%emt 0:00:00]} 1-0

[Event "5e festival international d'échecs d'A"]
[Site "Allauch, France"]
[Date "2023.09.02"]
[Round "9.5"]
[White "Tosser, Sacha"]
[Black "Toth, Kincso"]
[Result "0-1"]
[WhiteElo "1388"]
[BlackElo "1709"]
[PlyCount "102"]
[EventDate "2023.??.??"]
[TimeControl "1"]

1. c4 {[%emt 0:00:00]} e5 {[%emt 0:00:00]} 2. Nc3 {[%emt 0:00:00]} Nc6 {
[%emt 0:00:00]} 3. g3 {[%emt 0:00:00]} a6 {[%emt 0:00:00]} 4. Bg2 {[%emt 0:00:
00]} Bc5 {[%emt 0:00:00]} 5. e3 {[%emt 0:00:00]} d6 {[%emt 0:00:00]} 6. Nge2 {
[%emt 0:00:00]} Ba7 {[%emt 0:00:00]} 7. O-O {[%emt 0:00:00]} h5 {[%emt 0:00:00]
} 8. h3 {[%emt 0:00:00]} h4 {[%emt 0:00:00]} 9. g4 {[%emt 0:00:00]} f5 {
[%emt 0:00:00]} 10. gxf5 {[%emt 0:00:00]} Bxf5 {[%emt 0:00:00]} 11. e4 {
[%emt 0:00:00]} Be6 {[%emt 0:00:00]} 12. d3 {[%emt 0:00:00]} Qd7 {[%emt 0:00:
00]} 13. Kh2 {[%emt 0:00:00]} O-O-O {[%emt 0:00:00]} 14. f4 {[%emt 0:00:00]}
exf4 {[%emt 0:00:00]} 15. Nxf4 {[%emt 0:00:00]} Nf6 {[%emt 0:00:00]} 16. Nxe6 {
[%emt 0:00:00]} Qxe6 {[%emt 0:00:00]} 17. Nd5 {[%emt 0:00:00]} Kb8 {[%emt 0:00:
00]} 18. b4 {[%emt 0:00:00]} Ne5 {[%emt 0:00:00]} 19. Nf4 {[%emt 0:00:00]} Qd7
{[%emt 0:00:00]} 20. Qe2 {[%emt 0:00:00]} Rdg8 {[%emt 0:00:00]} 21. Nd5 {
[%emt 0:00:00]} Nh5 {[%emt 0:00:00]} 22. Be3 {[%emt 0:00:00]} Bxe3 {[%emt 0:00:
00]} 23. Qxe3 {[%emt 0:00:00]} g5 {[%emt 0:00:00]} 24. Nf6 {[%emt 0:00:00]}
Nxf6 {[%emt 0:00:00]} 25. Rxf6 {[%emt 0:00:00]} g4 {[%emt 0:00:00]} 26. Rf5 {
[%emt 0:00:00]} Qe7 {[%emt 0:00:00]} 27. Rg1 {[%emt 0:00:00]} gxh3 {[%emt 0:00:
00]} 28. Bxh3 {[%emt 0:00:00]} Rxg1 {[%emt 0:00:00]} 29. Kxg1 {[%emt 0:00:00]}
Rg8+ {[%emt 0:00:00]} 30. Kh2 {[%emt 0:00:00]} Rg3 {[%emt 0:00:00]} 31. Qf2 {
[%emt 0:00:00]} b6 {[%emt 0:00:00]} 32. Rf8+ {[%emt 0:00:00]} Ka7 {[%emt 0:00:
00]} 33. d4 {[%emt 0:00:00]} Ng4+ {[%emt 0:00:00]} 34. Bxg4 {[%emt 0:00:00]}
Rxg4 {[%emt 0:00:00]} 35. e5 {[%emt 0:00:00]} dxe5 {[%emt 0:00:00]} 36. Qf3 {
[%emt 0:00:00]} e4 {[%emt 0:00:00]} 37. Qxg4 {[%emt 0:00:00]} Qxf8 {[%emt 0:00:
00]} 38. Qxe4 {[%emt 0:00:00]} Qf2+ {[%emt 0:00:00]} 39. Kh1 {[%emt 0:00:00]}
Qf1+ {[%emt 0:00:00]} 40. Kh2 {[%emt 0:00:00]} Qxc4 {[%emt 0:00:00]} 41. a3 {
[%emt 0:00:00]} Qa2+ {[%emt 0:00:00]} 42. Kh3 {[%emt 0:00:00]} Qxa3+ {[%emt 0:
00:00]} 43. Kxh4 {[%emt 0:00:00]} Qxb4 {[%emt 0:00:00]} 44. Kg3 {[%emt 0:00:00]
} a5 {[%emt 0:00:00]} 45. Kf3 {[%emt 0:00:00]} a4 {[%emt 0:00:00]} 46. Qc6 {
[%emt 0:00:00]} Qxd4 {[%emt 0:00:00]} 47. Qxc7+ {[%emt 0:00:00]} Ka6 {[%emt 0:
00:00]} 48. Ke2 {[%emt 0:00:00]} Kb5 {[%emt 0:00:00]} 49. Qa7 {[%emt 0:00:00]}
Kb4 {[%emt 0:00:00]} 50. Qe7+ {[%emt 0:00:00]} Kb3 {[%emt 0:00:00]} 51. Ke1 {
[%emt 0:00:00]} Qb4+ {[%emt 0:00:00]} 0-1

[Event "5e festival international d'échecs d'A"]
[Site "Allauch, France"]
[Date "2023.09.02"]
[Round "9.6"]
[White "Hoang Villemagne, Mathieu"]
[Black "Sembel Rudelle, Gael"]
[Result "1-0"]
[WhiteElo "1350"]
[BlackElo "1390"]
[PlyCount "145"]
[EventDate "2023.??.??"]
[TimeControl "1"]

1. e4 {[%emt 0:00:00]} c5 {[%emt 0:00:00]} 2. Nf3 {[%emt 0:00:00]} Nc6 {
[%emt 0:00:00]} 3. c3 {[%emt 0:00:00]} Nf6 {[%emt 0:00:00]} 4. e5 {[%emt 0:00:
00]} Nd5 {[%emt 0:00:00]} 5. d4 {[%emt 0:00:00]} cxd4 {[%emt 0:00:00]} 6. cxd4
{[%emt 0:00:00]} d6 {[%emt 0:00:00]} 7. exd6 {[%emt 0:00:00]} e6 {[%emt 0:00:
00]} 8. a3 {[%emt 0:00:00]} a5 {[%emt 0:00:00]} 9. Bd3 {[%emt 0:00:00]} Bxd6 {
[%emt 0:00:00]} 10. O-O {[%emt 0:00:00]} Bd7 {[%emt 0:00:00]} 11. Nc3 {[%emt 0:
00:00]} Nxc3 {[%emt 0:00:00]} 12. bxc3 {[%emt 0:00:00]} Rc8 {[%emt 0:00:00]}
13. Ng5 {[%emt 0:00:00]} Qf6 {[%emt 0:00:00]} 14. Ne4 {[%emt 0:00:00]} Qe7 {
[%emt 0:00:00]} 15. Nxd6+ {[%emt 0:00:00]} Qxd6 {[%emt 0:00:00]} 16. a4 {
[%emt 0:00:00]} Ne7 {[%emt 0:00:00]} 17. Bb2 {[%emt 0:00:00]} Bc6 {[%emt 0:00:
00]} 18. Qg4 {[%emt 0:00:00]} h5 {[%emt 0:00:00]} 19. Qe2 {[%emt 0:00:00]} Qd5
{[%emt 0:00:00]} 20. f3 {[%emt 0:00:00]} Qd8 {[%emt 0:00:00]} 21. c4 {[%emt 0:
00:00]} Kf8 {[%emt 0:00:00]} 22. Rfe1 {[%emt 0:00:00]} b6 {[%emt 0:00:00]} 23.
d5 {[%emt 0:00:00]} exd5 {[%emt 0:00:00]} 24. Ba3 {[%emt 0:00:00]} Rc7 {
[%emt 0:00:00]} 25. cxd5 {[%emt 0:00:00]} Bxd5 {[%emt 0:00:00]} 26. Rac1 {
[%emt 0:00:00]} Be6 {[%emt 0:00:00]} 27. Qe5 {[%emt 0:00:00]} Rb7 {[%emt 0:00:
00]} 28. Bb2 {[%emt 0:00:00]} Rg8 {[%emt 0:00:00]} 29. Bh7 {[%emt 0:00:00]} Qd5
{[%emt 0:00:00]} 30. Red1 {[%emt 0:00:00]} f6 {[%emt 0:00:00]} 31. Qxd5 {
[%emt 0:00:00]} Bxd5 {[%emt 0:00:00]} 32. Bxg8 {[%emt 0:00:00]} Bxg8 {[%emt 0:
00:00]} 33. Ba3 {[%emt 0:00:00]} Kf7 {[%emt 0:00:00]} 34. Bxe7 {[%emt 0:00:00]}
Kxe7 {[%emt 0:00:00]} 35. Rc3 {[%emt 0:00:00]} Bh7 {[%emt 0:00:00]} 36. Rd5 {
[%emt 0:00:00]} Bg6 {[%emt 0:00:00]} 37. Re3+ {[%emt 0:00:00]} Kf7 {[%emt 0:00:
00]} 38. Rd6 {[%emt 0:00:00]} Bc2 {[%emt 0:00:00]} 39. Rd4 {[%emt 0:00:00]} b5
{[%emt 0:00:00]} 40. axb5 {[%emt 0:00:00]} Rxb5 {[%emt 0:00:00]} 41. Rc3 {
[%emt 0:00:00]} Bf5 {[%emt 0:00:00]} 42. Rc7+ {[%emt 0:00:00]} Kg6 {[%emt 0:00:
00]} 43. Ra7 {[%emt 0:00:00]} Rb1+ {[%emt 0:00:00]} 44. Kf2 {[%emt 0:00:00]}
Ra1 {[%emt 0:00:00]} 45. g4 {[%emt 0:00:00]} hxg4 {[%emt 0:00:00]} 46. fxg4 {
[%emt 0:00:00]} Ra2+ {[%emt 0:00:00]} 47. Kg3 {[%emt 0:00:00]} Be6 {[%emt 0:00:
00]} 48. Re4 {[%emt 0:00:00]} Bd5 {[%emt 0:00:00]} 49. Ree7 {[%emt 0:00:00]}
Ra3+ {[%emt 0:00:00]} 50. Kh4 {[%emt 0:00:00]} f5 {[%emt 0:00:00]} 51. Rxg7+ {
[%emt 0:00:00]} Kf6 {[%emt 0:00:00]} 52. Rh7 {[%emt 0:00:00]} Ra2 {[%emt 0:00:
00]} 53. h3 {[%emt 0:00:00]} fxg4 {[%emt 0:00:00]} 54. hxg4 {[%emt 0:00:00]}
Rh2+ {[%emt 0:00:00]} 55. Kg3 {[%emt 0:00:00]} Rxh7 {[%emt 0:00:00]} 56. Rxh7 {
[%emt 0:00:00]} a4 {[%emt 0:00:00]} 57. Kf4 {[%emt 0:00:00]} a3 {[%emt 0:00:00]
} 58. g5+ {[%emt 0:00:00]} Kg6 {[%emt 0:00:00]} 59. Ra7 {[%emt 0:00:00]} a2 {
[%emt 0:00:00]} 60. Ra6+ {[%emt 0:00:00]} Kg7 {[%emt 0:00:00]} 61. Kf5 {
[%emt 0:00:00]} Bc4 {[%emt 0:00:00]} 62. Ra7+ {[%emt 0:00:00]} Kg8 {[%emt 0:00:
00]} 63. Kf6 {[%emt 0:00:00]} Bd5 {[%emt 0:00:00]} 64. Kg6 {[%emt 0:00:00]}
Be4+ {[%emt 0:00:00]} 65. Kh6 {[%emt 0:00:00]} Bd5 {[%emt 0:00:00]} 66. g6 {
[%emt 0:00:00]} Kh8 {[%emt 0:00:00]} 67. g7+ {[%emt 0:00:00]} Kg8 {[%emt 0:00:
00]} 68. Rd7 {[%emt 0:00:00]} a1=Q {[%emt 0:00:00]} 69. Rd8+ {[%emt 0:00:00]}
Kf7 {[%emt 0:00:00]} 70. g8=Q+ {[%emt 0:00:00]} Ke7 {[%emt 0:00:00]} 71. Qf8+ {
[%emt 0:00:00]} Ke6 {[%emt 0:00:00]} 72. Rd6+ {[%emt 0:00:00]} Ke5 {[%emt 0:00:
00]} 73. Qf6+ {[%emt 0:00:00]} 1-0

[Event "5e festival international d'échecs d'A"]
[Site "Allauch, France"]
[Date "2023.09.02"]
[Round "9.8"]
[White "Proud'Hon, Gabriel"]
[Black "Maggio, Lucas"]
[Result "1/2-1/2"]
[WhiteElo "1340"]
[BlackElo "1321"]
[PlyCount "109"]
[EventDate "2023.??.??"]
[TimeControl "1"]

1. e4 {[%emt 0:00:00]} e6 {[%emt 0:00:00]} 2. d4 {[%emt 0:00:00]} d5 {[%emt 0:
00:00]} 3. Nd2 {[%emt 0:00:00]} c5 {[%emt 0:00:00]} 4. exd5 {[%emt 0:00:00]}
Qxd5 {[%emt 0:00:00]} 5. Ngf3 {[%emt 0:00:00]} cxd4 {[%emt 0:00:00]} 6. Bc4 {
[%emt 0:00:00]} Qd7 {[%emt 0:00:00]} 7. O-O {[%emt 0:00:00]} Nc6 {[%emt 0:00:
00]} 8. Nb3 {[%emt 0:00:00]} Nf6 {[%emt 0:00:00]} 9. Nbxd4 {[%emt 0:00:00]}
Nxd4 {[%emt 0:00:00]} 10. Nxd4 {[%emt 0:00:00]} a6 {[%emt 0:00:00]} 11. Be2 {
[%emt 0:00:00]} Bc5 {[%emt 0:00:00]} 12. Nb3 {[%emt 0:00:00]} Bd6 {[%emt 0:00:
00]} 13. Bf3 {[%emt 0:00:00]} O-O {[%emt 0:00:00]} 14. Be3 {[%emt 0:00:00]} Qc7
{[%emt 0:00:00]} 15. h3 {[%emt 0:00:00]} Rd8 {[%emt 0:00:00]} 16. Qe2 {[%emt 0:
00:00]} Bd7 {[%emt 0:00:00]} 17. Rfc1 {[%emt 0:00:00]} e5 {[%emt 0:00:00]} 18.
Qe1 {[%emt 0:00:00]} h6 {[%emt 0:00:00]} 19. c3 {[%emt 0:00:00]} Bc6 {[%emt 0:
00:00]} 20. Bxc6 {[%emt 0:00:00]} Qxc6 {[%emt 0:00:00]} 21. Rd1 {[%emt 0:00:00]
} Rac8 {[%emt 0:00:00]} 22. Qe2 {[%emt 0:00:00]} Bb8 {[%emt 0:00:00]} 23. Na5 {
[%emt 0:00:00]} Qc7 {[%emt 0:00:00]} 24. Rxd8+ {[%emt 0:00:00]} Rxd8 {[%emt 0:
00:00]} 25. Nc4 {[%emt 0:00:00]} e4 {[%emt 0:00:00]} 26. g3 {[%emt 0:06:58]}
Rd3 {[%emt 0:00:00]} 27. Nd2 {[%emt 0:00:00]} Qd7 {[%emt 0:00:00]} 28. Kg2 {
[%emt 0:00:00]} Ba7 {[%emt 0:00:00]} 29. Nc4 {[%emt 0:00:00]} Bxe3 {[%emt 0:00:
00]} 30. Ne5 {[%emt 0:00:00]} Rd2 {[%emt 0:00:00]} 31. Qxe3 {[%emt 0:00:00]}
Qd5 {[%emt 0:00:00]} 32. b3 {[%emt 0:00:00]} Rc2 {[%emt 0:00:00]} 33. Nc4 {
[%emt 0:00:00]} Qd3 {[%emt 0:00:00]} 34. Qxd3 {[%emt 0:00:00]} exd3 {[%emt 0:
00:00]} 35. Rd1 {[%emt 0:00:00]} Ne4 {[%emt 0:00:00]} 36. Rxd3 {[%emt 0:00:00]}
Rxf2+ {[%emt 0:00:00]} 37. Kg1 {[%emt 0:00:00]} Rxa2 {[%emt 0:00:00]} 38. Rd8+
{[%emt 0:00:00]} Kh7 {[%emt 0:00:00]} 39. Rd7 {[%emt 0:00:00]} Nxc3 {[%emt 0:
00:00]} 40. Rxb7 {[%emt 0:00:00]} Ne2+ {[%emt 0:00:00]} 41. Kf2 {[%emt 0:00:00]
} Nf4+ {[%emt 0:00:00]} 42. Kf1 {[%emt 0:00:00]} Nxh3 {[%emt 0:00:00]} 43. Rxf7
{[%emt 0:00:00]} Ng5 {[%emt 0:00:00]} 44. Ra7 {[%emt 0:00:00]} Ne4 {[%emt 0:00:
00]} 45. g4 {[%emt 0:00:00]} Nf6 {[%emt 0:00:00]} 46. Ne3 {[%emt 0:00:00]} Kg6
{[%emt 0:00:00]} 47. Kg1 {[%emt 0:00:00]} Ra3 {[%emt 0:00:00]} 48. Nc4 {
[%emt 0:00:00]} Rxb3 {[%emt 0:00:00]} 49. Rxa6 {[%emt 0:00:00]} Kg5 {[%emt 0:
00:00]} 50. Ra7 {[%emt 0:00:00]} Kxg4 {[%emt 0:00:00]} 51. Rxg7+ {[%emt 0:00:
00]} Kf5 {[%emt 0:00:00]} 52. Rf7 {[%emt 0:00:00]} Rc3 {[%emt 0:00:00]} 53. Nb6
{[%emt 0:00:00]} Kg6 {[%emt 0:00:00]} 54. Rxf6+ {[%emt 0:00:00]} Kxf6 {[%emt 0:
00:00]} 55. Nd5+ {[%emt 0:00:00]} 1/2-1/2